bitfinex/quotes_ETHUSD_20240711
["timestamp","ask_amount","ask_price","bid_price","bid_amount"]
[1720728927510,0.55,3106.5,3104.6,3.22094]
[1720728927710,0.55,3106.5,3104.7,3.22091]
[1720728927877,0.55,3106.6,3104.7,3.22091]
[1720728928072,0.355,3106.5,3104.7,3.22091]
[1720728928277,0.355,3106.5,3104.8,3.2208]
[1720728929111,0.355,3106.5,3104.2,3.22139]
[1720728929112,0.355,3106.5,3105.2,3.22039]
[1720728929415,3.23736,3106.8,3104.8,3.22074]
[1720728929416,6.45612,3106.8,3104.8,3.22074]
[1720728929599,6.45612,3106.8,3104.9,6.44142]
[1720728929788,6.45612,3106.8,3105.0,3.2206]
[1720728930183,3.23736,3106.8,3105.0,3.2206]
[1720728930386,0.882968,3106.7,3105.0,3.2206]
[1720728930590,0.882968,3106.7,3105.1,3.2205]
[1720728930946,0.882968,3106.7,3105.2,3.22033]
[1720728931082,0.882968,3106.7,3105.2,3.21951219]
[1720728931580,0.882968,3106.7,3105.1,3.2205]
[1720728931581,0.882968,3106.7,3105.3,3.22023]
[1720728931782,0.3882968,3106.6,3105.3,3.22023]
[1720728932298,0.3882968,3106.6,3105.1,3.2205]
[1720728932506,0.3882968,3106.6,3104.9,3.22067]
[1720728932815,5.59225,3106.9,3104.1,3.77148]
[1720728932816,3.0,3106.8,3105.3,3.22023]
[1720728933048,2.3736,3106.9,3105.4,3.21934359]
[1720728933701,2.3736,3106.9,3105.2,3.22033]
[1720728934040,5.59232,3106.9,3104.9,3.22069]
[1720728934181,5.59232,3106.9,3104.4,3.22114]
[1720728934182,3.21891,3106.7,3104.5,3.22103]
[1720728934395,3.21929,3106.3,3104.3,3.22125]
[1720728934603,3.21907,3106.5,3104.5,3.22112]
[1720728934885,3.621891,3106.6,3104.6,3.221]
[1720728934886,0.55,3106.4,3104.6,3.221]
[1720728935086,0.55,3106.4,3104.8,3.22081]
[1720728935327,0.621891,3106.6,3104.9,3.22063]
[1720728935481,5.59224,3106.9,3104.9,3.22063]
[1720728935482,6.21877,3106.8,3104.9,3.22063]
[1720728935685,0.55,3106.7,3104.9,3.22063]
[1720728935952,3.0,3106.8,3104.9,3.22063]
[1720728936228,2.3736,3106.9,3105.1,3.22049]
[1720728936530,2.3736,3106.9,3105.1,3.2204]
[1720728936751,0.53736,3106.8,3105.4,3.22019]
[1720728936934,0.53736,3106.8,3105.1,0.32204]
[1720728936935,3.0,3106.8,3105.3,3.22021]
[1720728937132,2.3736,3106.9,3105.3,3.21938608]
[1720728937347,2.3736,3106.9,3105.4,3.22017]
[1720728937666,2.3736,3106.9,3105.5,6.44002]
[1720728937792,2.3736,3106.9,3105.5,3.22001]
[1720728937990,0.23736,3106.8,3105.5,3.22001]
[1720728938190,0.23736,3106.8,3105.8,3.21972]
[1720728938900,0.23736,3106.8,3105.8,3.21968]
[1720728939142,0.23736,3106.8,3105.9,3.21965]
[1720728939356,2.46656367,3107.5,3105.8,3.21886661]
[1720728939538,1.11512487,3107.4,3105.8,3.21886661]
[1720728939746,1.11512487,3107.3,3105.8,3.21886661]
[1720728939921,1.11512487,3107.4,3105.9,3.21966]
[1720728940122,2.3006,3107.5,3105.9,3.21966]
[1720728940123,1.11512487,3107.3,3105.9,3.21966]
[1720728940463,2.3006,3107.5,3105.9,3.21966]
[1720728940464,1.11512487,3107.2,3105.9,3.21966]
[1720728940630,1.11507486,3107.1,3106.0,3.21957]
[1720728940834,0.23006,3107.4,3106.0,3.21957]
[1720728941133,1.11506087,3107.3,3106.0,3.21874871]
[1720728941342,1.11506087,3107.2,3105.9,3.21966]
[1720728941536,1.11506087,3107.3,3105.9,3.21966]
[1720728941712,1.11506087,3107.3,3104.5,3.7632]
[1720728941914,1.11506087,3107.3,3105.6,3.21991]
[1720728942113,1.11507957,3107.2,3105.7,3.21986]
[1720728942359,1.1150838,3107.1,3105.6,3.21991]
[1720728942562,1.1150838,3107.0,3105.8,3.21973]
[1720728942725,1.1150838,3106.9,3106.0,3.21956]
[1720728942928,0.25506,3107.4,3106.2,3.21936]
[1720728943136,1.3706085,3107.3,3106.2,3.2185477]
[1720728943424,1.1150425,3107.2,3106.2,3.2185477]
[1720728943659,1.1150425,3107.1,3106.2,3.2185477]
[1720728943867,1.1150425,3107.0,3106.2,3.2185477]
[1720728944030,0.255566,3107.3,3106.2,3.2185477]
[1720728944236,1.11498877,3107.2,3106.2,3.2185477]
[1720728944443,1.11498877,3107.1,3106.2,3.2185477]
[1720728944650,1.11498877,3107.2,3106.3,3.28362926]
[1720728944852,1.11496399,3107.1,3106.3,3.21925]
[1720728945065,0.255566,3107.3,3106.3,3.21842523]
[1720728945241,1.44301547,3107.2,3106.3,3.21842523]
[1720728945553,0.3280566,3107.2,3106.3,3.21842523]
[1720728945968,0.3280566,3107.2,3105.9,3.21959]
[1720728946279,1.11495867,3107.1,3105.9,3.21959]
[1720728946431,0.3280566,3107.2,3106.0,3.21954]
[1720728946432,1.11495867,3107.0,3106.0,3.21954]
[1720728946623,1.11495867,3106.9,3106.0,3.21954]
[1720728946955,0.3280566,3107.2,3106.0,3.21954]
[1720728947164,0.3280566,3107.2,3107.1,0.00082516]
[1720728947546,1.44310754,3107.2,3107.1,0.00082516]
[1720728950876,1.44304406,3107.2,3107.1,0.00082516]
[1720728951191,1.44298331,3107.2,3107.1,0.00082516]
[1720728951382,1.44301096,3107.2,3107.1,0.00082516]
[1720728951585,0.3280566,3107.2,3107.1,0.00082516]
[1720728952473,1.44301725,3107.2,3107.1,0.00082516]
[1720728952980,0.3280566,3107.2,3107.1,0.00082516]
[1720728953630,1.44308218,3107.2,3105.6,0.00082887]
[1720728953834,3.21859,3107.0,3105.6,0.00082887]
[1720728954178,3.21859,3107.0,3104.7,0.69032]
[1720728954179,5.66326,3106.8,3104.7,0.69032]
[1720728954426,5.66326,3106.8,3105.0,3.22054]
[1720728954427,1.27748383,3106.7,3105.0,3.22054]
[1720728954554,1.27748383,3106.6,3105.0,3.22054]
[1720728954738,1.11502558,3106.5,3105.0,3.22054]
[1720728954939,1.11502558,3106.4,3104.8,3.22073]
[1720728955283,1.11502558,3106.3,3104.9,3.22067]
[1720728955452,1.11502558,3106.6,3104.9,3.22067]
[1720728955655,0.95080338,3106.5,3104.9,3.22067]
[1720728955986,0.16241282,3106.4,3104.9,3.22067]
[1720728956188,1.11540526,3106.4,3104.9,3.22067]
[1720728956335,1.27781676,3106.3,3104.9,3.22067]
[1720728956530,1.27781676,3106.2,3104.9,3.22067]
[1720728956742,6.76884,3106.7,3104.3,2.3142]
[1720728956743,1.11540526,3106.1,3104.3,2.3142]
[1720728956955,1.11540526,3106.1,3104.1,0.00081872]
[1720728956956,3.21968,3105.9,3104.1,0.00081872]
[1720728957158,1.49237326,3105.8,3104.1,0.00081872]
[1720728957332,1.11540526,3105.7,3104.1,0.00081872]
[1720728958488,1.11540526,3105.7,3104.1,3.22233872]
[1720728959238,1.11565513,3105.6,3104.2,4.34248582]
[1720728959493,0.376968,3105.8,3104.2,3.22141]
[1720728959679,1.11559348,3105.7,3104.2,3.86579087]
[1720728960267,1.11559348,3105.7,3104.5,3.22112]
[1720728960475,0.376968,3105.8,3104.5,3.22112]
[1720728960989,1.1155006,3105.7,3104.2,3.86578087]
[1720728961149,1.1155006,3105.7,3104.1,0.00081872]
[1720728961150,1.1155006,3105.6,3104.1,0.00081872]
[1720728961468,1.1155006,3105.7,3104.1,3.22234872]
[1720728961635,1.1155006,3105.6,3104.1,3.22234872]
[1720728961834,1.11559156,3105.5,3104.2,3.22142]
[1720728962058,0.376968,3105.8,3104.2,3.22142]
[1720728962271,1.11565398,3105.7,3104.4,3.22116]
[1720728962454,0.376968,3105.8,3104.5,3.28552139]
[1720728962782,0.376968,3105.8,3104.5,3.22111]
[1720728963384,0.376968,3105.8,3104.8,3.22074]
[1720728963573,2.4445,3106.1,3104.8,3.22074]
[1720728963790,1.11546953,3106.0,3104.8,3.22074]
[1720728964078,2.4445,3106.1,3104.8,3.22074]
[1720728964285,1.11542741,3106.0,3104.8,3.22074]
[1720728964453,3.0,3106.0,3105.0,3.22058]
[1720728964776,1.00032457,3106.6,3105.1,3.542518]
[1720728965082,1.11534028,3106.5,3105.4,3.22018]
[1720728965265,8.49032457,3106.8,3105.4,3.22018]
[1720728965442,1.11522436,3106.7,3105.4,3.22018]
[1720728965642,1.11522436,3106.6,3105.4,3.22018]
[1720728965848,1.00180003,3106.9,3105.4,3.864237]
[1720728966041,1.11521328,3106.8,3105.4,3.864237]
[1720728966244,1.11521328,3106.7,3105.4,3.864237]
[1720728966476,1.11521328,3106.6,3105.6,3.21992]
[1720728966679,1.00180003,3106.9,3105.6,3.21992]
[1720728966850,0.15963616,3107.0,3105.7,0.321992]
[1720728966851,1.11515724,3106.8,3105.7,0.321992]
[1720728967056,1.50559819,3107.1,3105.8,6.43938]
[1720728967057,1.17166485,3107.1,3105.8,6.43938]
[1720728967355,1.11509843,3107.0,3105.9,3.21966]
[1720728967544,0.16986482,3107.1,3105.9,3.21966]
[1720728967862,1.11503827,3107.0,3105.9,3.21966]
[1720728968059,0.2780903,3107.0,3105.9,3.8957932]
[1720728969082,0.2780903,3107.0,3105.7,0.321992]
[1720728969083,1.11515465,3106.9,3105.7,0.321992]
[1720728969380,1.11515465,3106.8,3105.7,0.321992]
[1720728969574,4.00180003,3106.9,3105.7,3.541802]
[1720728969776,4.61382367,3107.0,3105.4,3.22017]
[1720728969777,2.11694863,3106.8,3105.4,3.22017]
[1720728969973,4.00180003,3106.9,3105.4,3.22017]
[1720728970162,2.11693941,3106.8,3105.4,3.22017]
[1720728970349,1.00180003,3106.8,3105.4,3.22017]
[1720728970552,1.1151826,3106.7,3105.4,3.22017]
[1720728970755,0.21169826,3106.6,3105.1,0.322058]
[1720728970955,1.00180003,3106.5,3105.2,3.22034]
[1720728971260,4.00180003,3106.5,3105.2,3.22034]
[1720728971459,2.11707623,3106.4,3105.2,3.22034]
[1720728971781,1.00180003,3106.4,3105.2,3.22034]
[1720728972148,1.00180003,3106.4,3105.2,6.44067]
[1720728972355,1.00180003,3106.5,3105.3,3.22022]
[1720728972661,4.00180003,3106.5,3105.3,3.22022]
[1720728973082,3.0,3106.4,3105.3,3.22022]
[1720728973381,1.00180003,3106.5,3105.3,3.22022]
[1720728973609,1.00180003,3106.4,3105.3,3.22022]
[1720728974088,1.53555337,3106.4,3105.3,3.96410808]
[1720728975654,1.53555337,3106.4,3105.4,3.22018]
[1720728975850,0.53375334,3106.4,3105.4,3.22018]
[1720728976188,3.53375334,3106.4,3105.4,3.22018]
[1720728976485,0.45355534,3106.3,3105.3,0.74388808]
[1720728976683,0.45355534,3106.3,3105.2,3.22032]
[1720728977290,0.45355534,3106.3,3105.3,3.22028]
[1720728977595,3.0,3106.3,3105.6,3.21992]
[1720728977792,1.00180003,3106.7,3105.7,2.3376]
[1720728977991,2.40533373,3107.3,3106.0,3.21947]
[1720728977992,1.00180003,3107.2,3106.0,3.21947]
[1720728978204,1.00180003,3107.2,3106.2,3.21936]
[1720728978376,1.00180003,3107.3,3106.2,3.21936]
[1720728978704,1.00180003,3107.3,3106.0,3.21947]
[1720728978911,1.25447224,3107.2,3106.2,3.21936]
[1720728979057,1.25447224,3107.2,3106.1,0.321947]
[1720728979505,1.25447224,3107.2,3105.7,2.3376]
[1720728979506,2.11680539,3107.1,3105.7,2.3376]
[1720728979718,2.11683381,3107.0,3105.7,2.3376]
[1720728979864,2.11683381,3107.0,3105.7,5.55742]
[1720728979865,1.00180003,3107.0,3105.7,5.55742]
[1720728980191,2.1168921,3106.9,3105.7,2.3376]
[1720728980394,1.00180003,3106.9,3105.1,2.727158]
[1720728980593,1.00180003,3106.9,3104.7,3.2209]
[1720728980594,1.00180003,3106.1,3104.7,3.2209]
[1720728980798,2.11689172,3106.0,3104.7,3.2209]
[1720728981005,2.11689172,3105.9,3104.7,3.2209]
[1720728981178,4.00180003,3105.9,3104.9,3.22065]
[1720728981366,1.00180003,3106.0,3104.9,3.864797]
[1720728981569,1.00180003,3106.1,3104.9,0.644147]
[1720728981790,1.00180003,3105.9,3104.4,2.4051]
[1720728982012,1.00180003,3105.7,3104.4,2.4051]
[1720728982218,2.11722432,3105.6,3104.4,2.4051]
[1720728982422,1.00180003,3105.6,3104.4,2.4051]
[1720728982567,4.00180003,3105.6,3104.1,0.00081872]
[1720728982874,1.00180003,3105.4,3104.1,0.00081872]
[1720728983072,2.11738921,3105.3,3104.1,0.00081872]
[1720728983271,2.11738921,3105.2,3104.1,0.00081872]
[1720728983512,3.0,3105.2,3104.1,0.00081872]
[1720728984004,1.00180003,3105.3,3104.1,0.00081872]
[1720728984172,1.64944686,3105.2,3104.1,0.00081872]
[1720728984374,3.0,3105.2,3104.1,0.00081872]
[1720728984574,1.00180003,3105.3,3104.1,0.00081872]
[1720728984575,3.0,3105.3,3104.1,3.22233872]
[1720728984774,1.40198003,3105.5,3104.1,3.22233872]
[1720728984775,0.40018,3105.5,3104.1,3.22233872]
[1720728985005,0.40018,3105.5,3104.2,0.064415]
[1720728985209,0.40018,3105.5,3104.3,0.06440794]
[1720728985429,3.0,3105.8,3104.4,3.22123]
[1720728985430,4.00180003,3105.8,3104.4,3.22123]
[1720728985577,2.11735348,3105.7,3104.3,3.22127]
[1720728985772,4.00180003,3105.7,3104.3,3.22125]
[1720728985983,4.00180003,3105.8,3104.5,2.4946]
[1720728986187,1.1155044,3105.7,3104.5,2.4946]
[1720728986396,4.00180003,3105.9,3104.6,0.63598897]
[1720728986571,1.00180003,3106.1,3104.7,3.2853148]
[1720728986776,1.00180003,3106.2,3104.9,3.2207]
[1720728987081,1.66695882,3106.5,3105.3,3.2202]
[1720728987082,1.00180003,3106.5,3105.3,3.2202]
[1720728987291,1.00180003,3106.7,3105.4,3.22013]
[1720728987493,1.11518614,3106.6,3105.4,3.22013]
[1720728987705,1.51348924,3106.8,3105.5,3.22008]
[1720728988008,1.11515108,3106.7,3105.5,3.22008]
[1720728988194,1.00180003,3106.8,3105.4,0.65047181]
[1720728988397,2.11694877,3106.7,3105.2,3.2204]
[1720728988589,1.11514874,3106.6,3105.2,3.2204]
[1720728988915,2.11694877,3106.6,3105.2,3.2204]
[1720728989111,1.00180003,3106.6,3105.1,2.4946]
[1720728989314,1.00180003,3106.4,3105.1,2.4946]
[1720728989633,3.28290003,3106.2,3104.6,3.066181]
[1720728989813,1.00180003,3106.0,3104.6,2.4946]
[1720728990005,1.11525293,3105.9,3104.7,3.22088]
[1720728990190,2.11705296,3106.0,3104.7,3.22088]
[1720728990390,2.11705296,3106.0,3104.6,2.4946]
[1720728990391,1.11525293,3105.9,3104.6,2.4946]
[1720728991013,4.11525293,3105.9,3104.7,3.22091]
[1720728991181,0.5117053,3105.8,3104.7,4.114567]
[1720728991385,0.5117053,3105.8,3104.7,0.893657]
[1720728991626,1.11545376,3105.7,3104.3,3.22131]
[1720728991838,1.11545376,3105.6,3104.1,5.59580872]
[1720728992062,1.00180003,3105.8,3104.2,3.22141]
[1720728992186,2.11735178,3105.7,3104.2,3.22141]
[1720728992499,2.11735178,3105.7,3104.1,2.37431872]
[1720728992500,1.00180003,3105.5,3104.1,2.37431872]
[1720728992695,1.46086027,3105.4,3104.1,0.00081872]
[1720728992889,2.11747187,3105.3,3104.1,0.00081872]
[1720728993099,1.11567184,3105.2,3104.1,0.00081872]
[1720728993686,3.0,3105.3,3104.1,0.00081872]
[1720728994039,3.34530852,3105.4,3104.1,3.22233872]
[1720728994209,3.0,3105.5,3104.2,3.86579087]
[1720728994419,1.11558636,3105.4,3104.2,3.86579087]
[1720728994607,1.00180003,3105.7,3104.2,3.86579087]
[1720728994808,1.11553681,3105.6,3104.2,3.86579087]
[1720728995140,6.064,3105.8,3104.4,3.22116]
[1720728995141,7.06580003,3105.8,3104.4,3.22116]
[1720728995353,2.95747825,3105.7,3104.5,0.322116]
[1720728995498,4.11552488,3105.6,3104.2,3.86575087]
[1720728995693,3.0,3105.6,3104.4,3.2212]
[1720728995925,3.84015334,3105.7,3104.4,3.2212]
[1720728996435,1.11555867,3105.6,3104.5,2.352]
[1720728996633,3.0,3105.6,3104.5,2.352]
[1720728996793,3.0,3105.6,3104.6,0.55732]
[1720728996993,4.84195337,3105.7,3104.6,0.55732]
[1720728997195,1.11555887,3105.6,3104.6,0.55732]
[1720728997395,3.0,3105.6,3104.6,0.55732]
[1720728997644,3.0,3105.6,3104.6,3.77834]
[1720728997814,3.0,3105.7,3104.7,3.833944]
[1720728998542,3.0,3105.7,3104.8,3.22081]
[1720728998705,4.00180003,3106.1,3104.9,3.2207]
[1720728999407,1.00180003,3105.9,3104.7,3.833874]
[1720728999675,4.00180003,3105.9,3104.8,3.9262744]
[1720728999840,4.06580003,3106.2,3104.8,3.9262244]
[1720729000180,3.064,3106.2,3105.0,3.2206]
[1720729000331,4.06580003,3106.2,3105.2,3.22038]
[1720729000538,1.00180003,3106.4,3105.5,3.22008]
[1720729000871,1.00161246,3106.7,3105.6,0.322008]
[1720729001072,1.00161246,3106.8,3105.6,3.541988]
[1720729001273,1.00161246,3106.9,3105.6,3.541988]
[1720729001572,1.11507344,3106.8,3105.6,3.541988]
[1720729001736,1.00161246,3106.9,3105.6,3.541988]
[1720729001937,0.23370957,3106.8,3105.7,0.3541988]
[1720729002481,0.23370957,3106.8,3105.7,3.5740688]
[1720729003144,1.00161246,3106.9,3105.7,3.5740688]
[1720729003340,1.11507372,3106.8,3105.7,3.5740688]
[1720729003561,1.00161246,3106.8,3105.7,0.3541988]
[1720729003778,1.11512031,3106.7,3105.7,0.3541988]
[1720729003941,4.00161246,3106.8,3105.7,0.3541988]
[1720729004270,1.11513744,3106.7,3105.7,0.3541988]
[1720729004470,3.0,3106.7,3105.7,0.3541988]
[1720729004682,4.00161246,3106.8,3105.7,0.3541988]
[1720729004880,1.00161246,3106.8,3105.7,0.3541988]
[1720729005089,2.11673888,3106.7,3105.7,0.3541988]
[1720729005269,1.33548328,3106.8,3105.4,3.22018]
[1720729005270,2.4619611,3106.6,3105.4,3.22018]
[1720729005474,1.34683468,3106.6,3105.4,3.22018]
[1720729005785,1.00161246,3106.7,3105.4,3.22018]
[1720729006556,1.00161246,3106.7,3105.2,3.22032]
[1720729006557,4.06561246,3106.7,3105.2,3.22032]
[1720729006765,1.00161246,3106.5,3105.2,3.22032]
[1720729007306,2.11686339,3106.4,3105.2,6.44065]
[1720729007467,1.00161246,3106.4,3105.3,3.22029]
[1720729007671,4.00161246,3106.6,3105.4,3.864231]
[1720729008313,3.0,3106.6,3105.4,3.864191]
[1720729008675,3.0,3106.6,3105.4,7.084311]
[1720729009020,3.0,3106.6,3105.4,0.644061]
[1720729009021,4.00161246,3106.6,3105.4,0.644061]
[1720729009212,1.00161246,3107.0,3105.9,3.21961]
[1720729009510,2.33709574,3107.2,3106.0,3.21956]
[1720729009657,1.00161246,3107.2,3106.0,3.21956]
[1720729010764,4.33548328,3107.4,3106.2,3.21935]
[1720729010765,1.00161246,3107.3,3106.2,3.21935]
[1720729010955,1.00161246,3107.4,3106.3,0.65031757]
[1720729011522,4.00161246,3107.4,3106.3,0.65031757]
[1720729011679,1.00161246,3107.4,3106.2,3.21935]
[1720729012575,1.00161246,3107.4,3106.2,3.21929]
[1720729012783,2.11653387,3107.3,3105.8,3.21972]
[1720729013008,2.11658145,3107.2,3105.6,2.4407]
[1720729013170,2.11658145,3107.1,3105.7,3.21981]
[1720729013364,2.11658145,3107.0,3105.8,0.566051]
[1720729013625,1.00161246,3107.0,3105.6,2.4407]
[1720729013775,1.11511532,3106.9,3105.6,2.4407]
[1720729013976,1.00161246,3107.0,3105.6,2.4407]
[1720729014378,1.11507944,3106.9,3105.6,2.4407]
[1720729014582,4.00161246,3107.0,3105.6,5.66065]
[1720729014775,0.53370957,3107.0,3105.7,4.107857]
[1720729015006,0.53370957,3107.0,3105.7,0.888067]
[1720729015203,1.53532203,3107.0,3105.7,0.888067]
[1720729015419,1.00161246,3106.8,3105.6,2.4407]
[1720729015580,1.11505883,3106.9,3105.6,2.4407]
[1720729015581,2.11667129,3106.7,3105.6,2.4407]
[1720729015778,1.11518368,3106.6,3105.6,2.4407]
[1720729015976,1.00161246,3106.7,3105.6,2.4407]
[1720729016200,1.11518007,3106.6,3105.6,2.4407]
[1720729016403,1.00161246,3106.7,3105.6,2.68477]
[1720729016707,1.11515768,3106.6,3105.6,2.68477]
[1720729016870,1.00161246,3106.7,3105.6,2.68477]
[1720729017612,4.33548328,3106.9,3105.6,2.68477]
[1720729017613,1.00161246,3106.8,3105.6,2.68477]
[1720729017778,1.1151604,3106.7,3105.6,2.68477]
[1720729017979,3.0,3106.8,3105.7,0.268477]
[1720729018303,3.0,3106.9,3105.7,3.488327]
[1720729018507,3.0,3106.8,3105.7,3.488327]
[1720729018708,3.0,3106.8,3105.8,0.5929027]
[1720729018882,3.0,3106.9,3105.8,0.5929027]
[1720729020384,4.00161246,3106.9,3105.8,0.5929027]
[1720729020729,3.0,3106.9,3105.8,0.5929027]
[1720729021484,3.0,3106.9,3105.8,3.8126427]
[1720729021725,3.0,3106.9,3105.9,3.95617998]
[1720729021897,3.0,3106.9,3105.9,3.95611998]
[1720729022076,1.00161246,3107.3,3105.9,3.95611998]
[1720729022077,1.00161246,3107.3,3106.2,3.21936]
[1720729022290,7.49,3107.7,3106.0,2.4518]
[1720729022291,8.49161246,3107.7,3106.3,3.21919]
[1720729022589,4.39948328,3107.8,3106.5,3.21904]
[1720729022590,1.11480275,3107.6,3106.5,3.21904]
[1720729022778,1.00161246,3107.8,3106.5,3.21904]
[1720729022979,1.33548328,3107.9,3106.5,3.21904]
[1720729022980,1.11477773,3107.7,3106.7,5.67064]
[1720729023221,1.00161246,3107.9,3106.7,2.4518]
[1720729023222,3.064,3107.8,3106.7,2.4518]
[1720729023427,1.00161246,3107.9,3106.1,2.770633]
[1720729023428,3.064,3107.4,3106.1,2.770633]
[1720729023616,1.11476339,3107.3,3106.1,2.770633]
[1720729024019,2.11637585,3107.3,3106.1,2.770633]
[1720729024319,1.63280097,3107.2,3106.1,2.770633]
[1720729024637,3.064,3107.0,3105.7,0.268477]
[1720729024921,5.11637585,3106.9,3105.7,0.268477]
[1720729025077,1.11476339,3106.8,3105.7,0.268477]
[1720729025277,2.11637585,3106.8,3105.7,0.268477]
[1720729025481,1.11476339,3106.7,3105.7,0.268477]
[1720729025879,3.064,3106.6,3105.7,0.268477]
[1720729026082,4.11476339,3106.5,3105.7,0.268477]
[1720729026282,3.0,3106.5,3105.7,0.268477]
[1720729026515,1.11522751,3106.4,3105.7,0.268477]
[1720729026726,1.11522751,3106.3,3105.7,0.268477]
[1720729027022,3.0,3106.5,3105.7,0.268477]
[1720729027208,1.11522026,3106.4,3105.7,0.268477]
[1720729027425,3.0,3106.5,3105.7,0.268477]
[1720729027426,1.11522026,3106.3,3105.7,0.268477]
[1720729027621,1.11522026,3106.4,3105.7,0.268477]
[1720729027831,1.11522026,3106.4,3104.8,2.3789]
[1720729028140,3.064,3106.2,3104.8,2.3789]
[1720729028352,5.11683272,3106.1,3104.8,2.3789]
[1720729028511,2.11683272,3106.0,3104.8,2.3789]
[1720729028701,2.11683272,3105.9,3104.2,5.60032]
[1720729029009,2.65072363,3105.8,3104.3,4.10359487]
[1720729029238,1.1154709,3105.7,3104.3,4.10359487]
[1720729029545,4.1154709,3105.7,3104.3,0.88226487]
[1720729029716,1.00223161,3105.5,3104.2,2.3789]
[1720729029914,8.40203347,3105.4,3104.2,2.3789]
[1720729030117,4.11559186,3105.3,3104.2,2.3789]
[1720729030341,1.11559186,3105.2,3104.2,2.3789]
[1720729030644,1.11559186,3105.2,3104.1,0.00081872]
[1720729030804,0.51178235,3105.1,3104.1,0.00081872]
[1720729031005,1.11559186,3105.0,3104.1,0.00081872]
[1720729031539,3.51178235,3105.1,3104.1,0.00081872]
[1720729031847,2.3751,3104.9,3104.1,0.00081872]
[1720729032007,3.064,3104.2,3104.1,0.00081872]
[1720729032331,5.60302432,3104.2,3102.6,0.00082301]
[1720729032657,5.11652142,3104.1,3102.6,0.00082301]
[1720729032805,1.11572471,3104.0,3102.6,0.00082301]
[1720729033303,3.0,3104.1,3102.6,0.00082301]
[1720729033503,1.11628246,3104.0,3102.6,0.00082301]
[1720729033703,3.064,3103.8,3102.6,0.00082301]
[1720729033909,3.0,3103.7,3102.6,0.00082301]
[1720729034107,3.064,3103.4,3102.6,0.00082301]
[1720729034436,3.064,3103.0,3102.6,0.00082301]
[1720729034807,3.0,3102.9,3102.6,0.00082301]
[1720729035409,3.6064,3102.9,3102.6,0.00082301]
[1720729036218,3.0,3102.9,3102.6,0.00082301]
[1720729038016,3.0,3103.3,3102.6,0.00082301]
[1720729038946,0.56111793,3103.9,3102.6,0.00082301]
[1720729039151,3.064,3104.1,3102.6,2.37972301]
[1720729039445,3.064,3104.1,3102.7,3.22299]
[1720729039646,3.064,3104.1,3102.8,3.22287]
[1720729040065,3.064,3103.6,3102.6,2.37972301]
[1720729040253,0.3064,3103.5,3102.6,0.00082301]
[1720729040552,3.0624899,3103.2,3102.6,0.00082301]
[1720729040748,3.0,3103.1,3102.6,0.00082301]
[1720729042468,3.0,3103.5,3102.6,0.00082301]
[1720729043243,3.064,3103.6,3102.6,0.00082301]
[1720729043557,3.55810012,3104.0,3102.6,0.32322931]
[1720729044632,3.55810012,3104.0,3102.8,3.22282]
[1720729044633,3.064,3104.0,3102.8,3.22282]
[1720729044853,3.55810012,3104.4,3103.1,3.22249]
[1720729045055,3.55810012,3104.4,3103.2,3.22246]
[1720729045455,3.55810012,3104.4,3103.2,3.2868932]
[1720729045660,3.55810012,3104.4,3103.3,3.55102932]
[1720729045947,2.3751,3104.8,3103.6,3.22205]
[1720729045948,3.064,3104.8,3103.6,3.22205]
[1720729046171,3.064,3104.8,3103.3,0.32868932]
[1720729046172,3.064,3104.8,3103.9,3.22174]
[1720729046341,3.064,3104.8,3103.8,3.22181]
[1720729046542,3.064,3104.8,3103.7,2.2809]
[1720729046746,3.064,3104.8,3103.8,0.22809]
[1720729046943,3.55810012,3104.8,3103.8,0.22809]
[1720729047174,3.55810012,3104.8,3103.3,0.32868932]
[1720729047175,3.064,3104.4,3103.3,0.32868932]
[1720729047382,3.064,3104.0,3103.3,0.32868932]
[1720729047691,3.064,3104.0,3102.8,5.50369]
[1720729047692,3.0,3103.9,3102.8,5.50369]
[1720729047858,3.0,3103.9,3102.9,3.22272]
[1720729048254,3.0,3103.9,3102.8,5.50369]
[1720729048947,3.0,3103.9,3102.8,2.2809]
[1720729050298,3.0,3103.9,3102.6,0.32322931]
[1720729050299,3.064,3103.6,3102.6,0.32322931]
[1720729050495,3.064,3103.6,3102.6,0.00082301]
[1720729050496,3.0,3103.5,3102.6,0.00082301]
[1720729051917,5.3878,3104.0,3102.6,0.00082301]
[1720729051918,3.0,3103.9,3102.6,3.22387301]
[1720729052056,3.0,3103.9,3102.8,3.22286]
[1720729052716,3.0,3103.9,3102.7,3.22299]
[1720729052877,3.0,3103.9,3102.8,0.3223813]
[1720729053763,3.0,3103.9,3102.6,3.22391301]
[1720729054489,3.0,3103.9,3102.6,0.00082301]
[1720729057826,3.0,3103.9,3102.9,3.22277]
[1720729058105,3.0,3104.3,3102.9,3.22277]
[1720729058316,3.83878,3104.3,3103.0,0.322277]
[1720729058526,3.064,3104.4,3103.0,0.322277]
[1720729058811,3.064,3104.4,3103.1,5.62789528]
[1720729059001,3.064,3104.4,3103.1,8.85038369]
[1720729059512,3.064,3104.4,3103.2,3.22247]
[1720729059868,3.0,3104.3,3103.3,0.06443201]
[1720729060068,3.0,3104.3,3103.4,0.3286902]
[1720729060287,3.0,3104.3,3103.5,0.06443188]
[1720729061192,3.0,3104.3,3103.4,0.3286902]
[1720729061379,3.0,3104.7,3103.4,0.3286902]
[1720729061584,1.11590841,3104.6,3103.4,0.3286902]
[1720729061806,1.11590841,3104.5,3103.4,0.3286902]
[1720729061968,0.71799084,3104.6,3103.4,0.3286902]
[1720729062170,1.11590411,3104.5,3103.4,0.3286902]
[1720729062473,0.71799084,3104.6,3103.4,0.3286902]
[1720729062672,1.11592836,3104.5,3103.4,0.3286902]
[1720729062907,0.71799084,3104.6,3103.4,0.3286902]
[1720729063120,1.11592834,3104.5,3103.4,0.3286902]
[1720729063286,3.0,3104.7,3103.4,0.3286902]
[1720729063626,3.0,3104.7,3103.4,3.5509302]
[1720729063766,3.0,3104.7,3103.5,0.35509302]
[1720729063970,3.064,3104.8,3103.6,3.22205]
[1720729064166,3.064,3105.2,3103.6,3.28638284]